fUSD/lending_fUSD_20251206
["ID","MTS","AMOUNT","RATE_DAILY","PERIOD"]
[396526797,1765036252223,-549.682346,0.000155,2]
[396526798,1765036252234,-233.796686,0.000155,2]
[396526799,1765036252246,-151.0,0.000155,2]
[396526800,1765036252257,-549.682346,0.000155,2]
[396526801,1765036252592,-549.682346,0.000155,2]
[396526802,1765036252614,-549.682337,0.000155,2]
[396526803,1765036252624,-151.0,0.000155,2]
[396526804,1765036252634,-151.0,0.000155,2]
[396526805,1765036252643,-2876.878378,0.000155,2]
[396526806,1765036252652,-2876.878378,0.000155,2]
[396526807,1765036252662,-2876.878378,0.000155,2]
[396526808,1765036252672,-151.0,0.000155,2]
[396526809,1765036252681,-2876.878369,0.000155,2]
[396526810,1765036252691,-919.228781,0.000155,2]
[396526811,1765036252700,-720.65189477,0.000155,2]
[396526812,1765036252710,-919.228781,0.000155,2]
[396526813,1765036252720,-151.0,0.000155,2]
[396526814,1765036252730,-919.228781,0.000155,2]
[396526815,1765036252740,-180.85705,0.000155,2]
[396526816,1765036252749,-644.016338,0.000155,2]
[396526817,1765036252759,-919.228783,0.000155,2]
[396526818,1765036252768,-180.85705,0.000155,2]
[396526819,1765036252778,-644.016338,0.000155,2]
[396526820,1765036252787,-180.85705,0.000155,2]
[396526821,1765036252797,-644.016338,0.000155,2]
[396526822,1765036252807,-180.857058,0.000155,2]
[396526823,1765036252816,-644.016339,0.000155,2]
[396526824,1765036252825,-151.0,0.000155,2]
[396526825,1765036252835,-150.0,0.00015509,2]
[396526826,1765036252844,-150.0,0.00015514,2]
[396526827,1765036252854,-150.0,0.00015517,2]
[396526828,1765036252863,-997.64029733,0.00015521,2]
[396526829,1765036252872,-925.29876444,0.00015521,2]
[396526830,1765036252882,-307.08770607,0.00015521,2]
[396526831,1765036252891,-1000.0,0.00015521,2]
[396526832,1765036252900,-500.0,0.00015521,2]
[396526833,1765036252910,-1000.70568226,0.00015521,2]
[396526834,1765036252919,-1002.39184699,0.00015521,2]
[396526835,1765036252929,-1000.0,0.00015521,2]
[396526836,1765036252938,-1000.0,0.00015521,2]
[396526837,1765036252948,-501.62048867,0.00015521,2]
[396526838,1765036252958,-1000.0,0.00015521,2]
[396526839,1765036252967,-873.20386304,0.00015521,2]
[396526840,1765036252977,-1001.86854326,0.00015521,2]
[396526841,1765036252987,-1000.0,0.00015521,2]
[396526842,1765036252996,-1000.0,0.00015521,2]
[396526843,1765036253006,-1000.0,0.00015521,2]
[396526844,1765036253015,-1000.0,0.00015521,2]
[396526845,1765036253024,-621.50773533,0.00015521,2]
[396526846,1765036253035,-150.0,0.00015522,2]
[396526847,1765036253044,-150.0,0.0001553,2]
[396526848,1765036253053,-150.0,0.0001553,2]
[396526849,1765036253063,-150.0,0.0001553,2]
[396526850,1765036253072,-150.0,0.00015537,2]
[396526851,1765036253081,-150.0,0.00015542,2]
[396526852,1765036253091,-150.0,0.00015556,2]
[396526853,1765036253101,-433.0,0.00015559,2]
[396526854,1765036253111,-449.0,0.00015562,2]
[396526855,1765036253120,-150.0,0.00015563,2]
[396526856,1765036253130,-150.0,0.00015581,2]
[396526857,1765036253139,-150.0,0.00015583,2]
[396526858,1765036253149,-150.0,0.00015587,2]
[396526859,1765036253158,-150.0,0.00015597,2]
[396526860,1765036253168,-213.57,0.00015604,2]
[396526861,1765036253177,-150.0,0.00015609,2]
[396526862,1765036253189,-2450.0,0.00015616,2]
[396526863,1765036253200,-150.0,0.00015627,2]
[396526864,1765036253209,-150.0,0.00015627,2]
[396526865,1765036253219,-150.0,0.00015637,2]
[396526866,1765036253229,-150.0,0.00015639,2]
[396526867,1765036253240,-150.0,0.00015645,2]
[396526868,1765036253250,-14375.54396746,0.00015653,2]
[396526869,1765036253259,-150.0,0.00015655,2]
[396526870,1765036253270,-150.0,0.00015657,2]
[396526871,1765036253279,-200.0,0.00015658,2]
[396526872,1765036253290,-1000.0,0.00015687,2]
[396526873,1765036253299,-150.0,0.00015687,2]
[396526874,1765036253310,-150.0,0.00015698,2]
[396526875,1765036253319,-449.0,0.00015699,2]
[396526876,1765036253329,-150.0,0.00015701,2]
[396526877,1765036253339,-150.0,0.00015712,2]
[396526878,1765036253351,-3439.0,0.00015731,2]
[396526879,1765036253361,-150.0,0.00015731,2]
[396526880,1765036253371,-150.0,0.00015735,2]
[396526881,1765036253381,-150.0,0.00015737,2]
[396526882,1765036253391,-150.0,0.00015741,2]
[396526883,1765036253401,-150.0,0.00015747,2]
[396526884,1765036253411,-150.0,0.00015751,2]
[396526885,1765036253422,-150.0,0.00015756,2]
[396526886,1765036253432,-150.0,0.00015773,2]
[396526887,1765036253442,-150.0,0.00015773,2]
[396526888,1765036253452,-150.0,0.00015773,2]
[396526889,1765036253462,-150.0,0.00015787,2]
[396526890,1765036253471,-150.0,0.00015793,2]
[396526891,1765036253481,-150.0,0.00015797,2]
[396526892,1765036253490,-150.0,0.00015805,2]
[396526893,1765036253500,-150.0,0.00015815,2]
[396526894,1765036253510,-150.0,0.00015824,2]
[396526895,1765036253520,-449.0,0.00015836,2]
[396526896,1765036253530,-150.0,0.00015837,2]
[396526897,1765036253540,-150.0,0.00015839,2]
[396526898,1765036253549,-150.0,0.00015854,2]
[396526899,1765036253559,-150.0,0.00015854,2]
[396526900,1765036253568,-150.0,0.00015854,2]
[396526901,1765036253577,-150.0,0.00015873,2]
[396526902,1765036253587,-150.0,0.00015878,2]
[396526903,1765036253596,-150.0,0.00015882,2]
[396526904,1765036253606,-150.0,0.00015884,2]
[396526905,1765036253620,-150.0,0.00015887,2]
[396526906,1765036253630,-600.0,0.0001589,2]
[396526907,1765036253643,-1360.39082687,0.000159,2]
[396526908,1765036253657,-1360.39082682,0.000159,2]
[396526909,1765036253667,-1360.39082682,0.000159,2]
[396526910,1765036253677,-1360.39082682,0.000159,2]
[396526911,1765036253687,-1360.39082682,0.000159,2]
[396526912,1765036253697,-1360.39082682,0.000159,2]
[396526913,1765036253707,-150.0,0.00015905,2]
[396526914,1765036253716,-150.0,0.00015913,2]
[396526915,1765036253726,-587.0,0.00015918,2]
[396526916,1765036253735,-150.0,0.0001593,2]
[396526917,1765036253745,-150.0,0.00015932,2]
[396526918,1765036253755,-191.32,0.00015935,2]
[396526919,1765036253765,-150.0,0.00015937,2]
[396526920,1765036253775,-150.0,0.00015952,2]
[396526921,1765036253784,-150.0,0.00015967,2]
[396526922,1765036253794,-150.0,0.00015967,2]
[396526923,1765036253804,-449.0,0.00015973,2]
[396526924,1765036253814,-150.0,0.00015976,2]
[396526925,1765036253823,-322.6107,0.00015981,2]
[396526926,1765036253832,-191.32,0.00015984,2]
[396526927,1765036253842,-150.0,0.00015987,2]
[396526928,1765036253852,-334.5472959,0.00015988,2]
[396526929,1765036253862,-599.60298507,0.00015989,2]
[396526930,1765036253871,-1747.51474245,0.0001599,5]
[396526931,1765036253880,-150.0,0.00015991,2]
[396526932,1765036253890,-9016.85477501,0.00016,2]
[396526933,1765036253900,-5132.95526054,0.00016,2]
[396526934,1765036253910,-480.30253659,0.00016,3]
[396526935,1765036253920,-200.0,0.00016,2]
[396526936,1765036253929,-150.0,0.00016003,2]
[396526937,1765036253939,-150.0,0.00016016,2]
[396526938,1765036253949,-150.0,0.00016016,2]
[396526939,1765036253958,-150.0,0.00016016,2]
[396526940,1765036253967,-150.0,0.00016022,2]
[396526941,1765036253978,-2351.0,0.00016023,2]
[396526942,1765036253987,-150.0,0.00016026,2]
[396526943,1765036253997,-239.145411,0.00016033,2]
[396526944,1765036254007,-2592.070364,0.00016033,2]
[396526945,1765036254017,-239.145411,0.00016033,2]
[396526946,1765036254026,-2592.070364,0.00016033,2]
[396526947,1765036254036,-239.145411,0.00016033,2]
[396526948,1765036254045,-2592.070364,0.00016033,2]
[396526949,1765036254056,-239.14542,0.00016033,2]
[396526950,1765036254065,-151.0,0.00016033,2]
[396526951,1765036254075,-2592.070358,0.00016033,2]
[396526952,1765036254084,-542.98217,0.00016033,2]
[396526953,1765036254094,-542.98217,0.00016033,2]
[396526954,1765036254103,-218.313908,0.00016033,2]
[396526955,1765036254112,-542.98217,0.00016033,2]
[396526956,1765036254122,-542.982166,0.00016033,2]
[396526957,1765036254131,-218.313908,0.00016033,2]
[396526958,1765036254141,-9007.305124,0.00016033,2]
[396526959,1765036254150,-669.223393,0.00016033,2]
[396526960,1765036254160,-218.313908,0.00016033,2]
[396526961,1765036254170,-9007.305124,0.00016033,2]
[396526962,1765036254180,-669.223393,0.00016033,2]
[396526963,1765036254192,-218.313913,0.00016033,2]
[396526964,1765036254201,-669.223393,0.00016033,2]
[396526965,1765036254211,-9007.305124,0.00016033,2]
[396526966,1765036254221,-669.2234,0.00016033,2]
[396526967,1765036254231,-9007.305133,0.00016033,2]
[396526968,1765036254240,-244.112819,0.00016033,2]
[396526969,1765036254250,-244.112819,0.00016033,2]
[396526970,1765036254259,-244.112819,0.00016033,2]
[396526971,1765036254270,-244.112827,0.00016033,2]
[396526972,1765036254279,-156.93281,0.00016033,2]
[396526973,1765036254290,-156.93281,0.00016033,2]
[396526974,1765036254300,-156.93281,0.00016033,2]
[396526975,1765036254310,-156.932802,0.00016033,2]
[396526976,1765036254320,-151.0,0.00016033,2]
[396526977,1765036254330,-151.0,0.00016033,2]
[396526978,1765036254339,-151.0,0.00016033,2]
[396526979,1765036254348,-151.0,0.00016033,2]
[396526980,1765036254358,-151.0,0.00016033,2]
[396526981,1765036254368,-166.62864,0.00016033,2]
[396526982,1765036254378,-166.62864,0.00016033,2]
[396526983,1765036254387,-166.62864,0.00016033,2]
[396526984,1765036254397,-166.628641,0.00016033,2]
[396526985,1765036254408,-151.0,0.00016033,2]
[396526986,1765036254418,-150.0,0.00016037,2]
[396526987,1765036254427,-3439.0,0.00016046,2]
[396526988,1765036254437,-150.0,0.00016049,2]
[396526989,1765036254447,-150.0,0.00016052,2]
[396526990,1765036254456,-150.0,0.0001606,2]
[396526991,1765036254465,-561.65,0.0001606,2]
[396526992,1765036254475,-3439.0,0.00016061,2]
[396526993,1765036254485,-1327.32148805,0.00016065,2]
[396526994,1765036254494,-150.0,0.00016068,2]
[396526995,1765036254504,-14375.54396746,0.00016068,2]
[396526996,1765036254514,-1500.0,0.00016068,2]
[396526997,1765036254524,-437.39288535,0.00016068,2]
[396526998,1765036254534,-1500.0,0.00016068,2]
[396526999,1765036254543,-861.67702976,0.00016068,2]
[396527000,1765036254553,-279.77286601,0.00016068,2]
[396527001,1765036254563,-1503.05813254,0.00016068,2]
[396527002,1765036254573,-1500.0,0.00016068,2]
[396527003,1765036254582,-1500.0,0.00016068,2]
[396527004,1765036254591,-3439.0,0.00016069,2]
[396527005,1765036254602,-151.0,0.00016069,2]
[396527006,1765036254612,-165.683626,0.00016069,2]
[396527007,1765036254622,-165.683626,0.00016069,2]
[396527008,1765036254633,-151.0,0.00016069,2]
[396527009,1765036254642,-165.683626,0.00016069,2]
[396527010,1765036254652,-165.683621,0.00016069,2]
[396527011,1765036254663,-262.4386,0.00016069,2]
[396527012,1765036254672,-336.025119,0.00016069,2]
[396527013,1765036254682,-336.025119,0.00016069,2]
[396527014,1765036254692,-336.025119,0.00016069,2]
[396527015,1765036254701,-336.025115,0.00016069,2]
[396527016,1765036254712,-196.608304,0.00016069,2]
[396527017,1765036254721,-196.608304,0.00016069,2]
[396527018,1765036254731,-196.608304,0.00016069,2]
[396527019,1765036254741,-196.608294,0.00016069,2]
[396527020,1765036254750,-379.853328,0.00016069,2]
[396527021,1765036254760,-379.853328,0.00016069,2]
[396527022,1765036254769,-379.853328,0.00016069,2]
[396527023,1765036254779,-379.853323,0.00016069,2]
[396527024,1765036254789,-203.752706,0.00016069,2]
[396527025,1765036254800,-151.0,0.00016069,2]
[396527026,1765036254811,-342.302899,0.00016069,2]
[396527027,1765036254829,-492.735654,0.00016069,2]
[396527028,1765036254840,-342.302899,0.00016069,2]
[396527029,1765036254850,-492.735654,0.00016069,2]
[396527030,1765036254860,-342.302899,0.00016069,2]
[396527031,1765036254870,-492.735654,0.00016069,2]
[396527032,1765036254880,-342.302892,0.00016069,2]
[396527033,1765036254889,-492.735656,0.00016069,2]
[396527034,1765036254899,-627.278881,0.00016069,2]
[396527035,1765036254909,-627.278881,0.00016069,2]
[396527036,1765036254994,-627.278881,0.00016069,2]
[396527037,1765036255004,-627.278886,0.00016069,2]
[396527038,1765036255015,-266.253113,0.00016069,2]
[396527039,1765036255024,-150.0,0.0001608,2]
[396527040,1765036255033,-151.0,0.00016082,2]
[396527041,1765036255044,-151.0,0.00016082,2]
[396527042,1765036255053,-151.0,0.00016082,2]
[396527043,1765036255063,-151.0,0.00016082,2]
[396527044,1765036255072,-151.0,0.00016082,2]
[396527045,1765036255081,-7727.0,0.00016082,2]
[396527046,1765036255090,-2644.0,0.00016082,2]
[396527047,1765036255099,-150.0,0.00016087,2]
[396527048,1765036255108,-151.0,0.00016092,2]
[396527049,1765036255117,-151.0,0.00016092,2]
[396527050,1765036255127,-150.0,0.00016092,2]
[396527051,1765036255136,-720.65189477,0.000161,2]
[396527052,1765036255145,-150.0,0.000161,2]
[396527053,1765036255154,-150.0,0.00016108,2]
[396527054,1765036255163,-151.0,0.00016109,2]
[396527055,1765036255173,-449.0,0.0001611,2]
[396527056,1765036255182,-150.0,0.00016114,2]
[396527057,1765036255196,-1600.0,0.00016115,2]
[396527058,1765036255206,-151.0,0.00016116,2]
[396527059,1765036255215,-151.0,0.00016116,2]
[396527060,1765036255225,-151.0,0.00016116,2]
[396527061,1765036255235,-201.449255,0.00016116,2]
[396527062,1765036255244,-151.0,0.00016116,2]
[396527063,1765036255253,-151.0,0.00016116,2]
[396527064,1765036255263,-151.0,0.00016116,2]
[396527065,1765036255273,-151.0,0.00016116,2]
[396527066,1765036255282,-151.0,0.00016116,2]
[396527067,1765036255291,-151.0,0.00016116,2]
[396527068,1765036255300,-168.487655,0.00016116,2]
[396527069,1765036255310,-151.0,0.00016116,2]
[396527070,1765036255319,-151.0,0.00016116,2]
[396527071,1765036255328,-151.0,0.00016116,2]
[396527072,1765036255337,-9999.99,0.00016116,2]
[396527073,1765036255347,-3439.0,0.00016117,2]
[396527074,1765036255356,-3446.0,0.00016119,2]
[396527075,1765036255366,-617.374,0.00016119,2]
[396527076,1765036255375,-1605.0,0.00016119,2]
[396527077,1765036255384,-1323.0,0.00016119,2]
[396527078,1765036255394,-658.81,0.00016119,2]
[396527079,1765036255403,-1266.298,0.00016119,2]
[396527080,1765036255412,-910.0,0.00016119,2]
[396527081,1765036255422,-1197.268,0.00016119,2]
[396527082,1765036255432,-150.0,0.00016119,2]
[396527083,1765036255442,-253.0,0.00016119,2]
[396527084,1765036255451,-4707.0,0.00016119,2]
[396527085,1765036255460,-562.0,0.00016119,2]
[396527086,1765036255469,-6513.0,0.00016119,2]
[396527087,1765036255479,-150.0,0.00016137,2]
[396527088,1765036255488,-150.0,0.00016137,2]
[396527089,1765036255498,-168.0,0.00016141,2]
[396527090,1765036255507,-4425.0,0.00016156,2]
[396527091,1765036255517,-150.0,0.0001616,2]
[396527092,1765036255526,-2450.0,0.00016164,2]
[396527093,1765036255535,-150.0,0.00016166,2]
[396527094,1765036255545,-150.0,0.00016174,2]
[396527095,1765036255554,-150.0,0.00016182,2]
[396527096,1765036255563,-150.0,0.00016187,2]
[396527097,1765036255573,-150.0,0.00016194,2]
[396527098,1765036255583,-500.0,0.00016199,2]
[396527099,1765036255592,-500.0,0.00016199,2]
[396527100,1765036255601,-151.0,0.000162,2]
[396527101,1765036255611,-191.918116,0.000162,2]
[396527102,1765036255620,-150.0,0.00016206,2]
[396527103,1765036255630,-150.0,0.00016214,2]
[396527104,1765036255639,-150.0,0.00016222,2]
[396527105,1765036255649,-4425.0,0.00016224,2]
[396527106,1765036255659,-150.0,0.00016225,2]
[396527107,1765036255668,-150.0,0.00016237,2]
[396527108,1765036255678,-449.0,0.00016247,2]
[396527109,1765036255688,-150.0,0.00016248,2]
[396527110,1765036255697,-150.0,0.00016252,2]
[396527111,1765036255707,-150.0,0.00016258,2]
[396527112,1765036255716,-150.0,0.00016258,2]
[396527113,1765036255725,-150.0,0.00016258,2]
[396527114,1765036255735,-150.0,0.00016271,2]
[396527115,1765036255744,-150.0,0.00016283,2]
[396527116,1765036255753,-150.0,0.00016287,2]
[396527117,1765036255762,-150.0,0.00016298,2]
[396527118,1765036255772,-168.0,0.00016306,2]
[396527119,1765036255781,-150.0,0.00016307,2]
[396527120,1765036255790,-150.0,0.00016307,2]
[396527121,1765036255800,-213.57,0.00016313,2]
[396527122,1765036255808,-4425.0,0.00016317,2]
[396527123,1765036255818,-168.0,0.00016317,2]
[396527124,1765036255827,-150.0,0.00016322,2]
[396527125,1765036255836,-150.0,0.00016337,2]
[396527126,1765036255845,-150.0,0.00016342,2]
[396527127,1765036255854,-150.0,0.00016344,2]
[396527128,1765036255863,-150.0,0.0001636,2]
[396527129,1765036255873,-150.0,0.00016369,2]
[396527130,1765036255882,-449.0,0.00016384,2]
[396527131,1765036255891,-150.0,0.00016387,2]
[396527132,1765036255900,-168.0,0.00016387,2]
[396527133,1765036255910,-150.0,0.00016389,2]
[396527134,1765036255919,-150.0,0.00016392,2]
[396527135,1765036255928,-150.0,0.00016395,2]
[396527136,1765036255938,-174.04858249,0.000164,2]
[396527137,1765036255947,-1000.0,0.000164,2]
[396527138,1765036255957,-150.0,0.00016401,2]
[396527139,1765036255966,-150.0,0.0001642,2]
[396527140,1765036255975,-150.0,0.0001642,2]
[396527141,1765036255985,-150.0,0.0001642,2]
[396527142,1765036255994,-150.0,0.00016435,2]
[396527143,1765036256003,-150.0,0.00016437,2]
[396527144,1765036256013,-500.0,0.00016437,2]
[396527145,1765036256022,-166.93417247,0.00016437,2]
[396527146,1765036256031,-177.362778,0.00016438,2]
[396527147,1765036256040,-500.0,0.00016438,2]
[396527148,1765036256049,-528.42741305,0.00016438,2]
[396527149,1765036256058,-528.42741305,0.00016438,2]
[396527150,1765036256068,-528.42741305,0.00016438,2]
[396527151,1765036256079,-528.42741305,0.00016438,2]
[396527152,1765036256089,-528.42741305,0.00016438,2]
[396527153,1765036256097,-528.42741305,0.00016438,2]
[396527154,1765036256106,-528.42741305,0.00016438,2]
[396527155,1765036256115,-528.42741305,0.00016438,2]
[396527156,1765036256124,-528.42741305,0.00016438,2]
[396527157,1765036256133,-528.42741305,0.00016438,2]
[396527158,1765036256142,-528.42741305,0.00016438,2]
[396527159,1765036256151,-528.42741305,0.00016438,2]
[396527160,1765036256160,-528.42741305,0.00016438,2]
[396527161,1765036256170,-528.42741305,0.00016438,2]
[396527162,1765036256179,-528.42741305,0.00016438,2]
[396527163,1765036256189,-528.42741305,0.00016438,2]
[396527164,1765036256200,-528.42741305,0.00016438,2]
[396527165,1765036256209,-528.42741305,0.00016438,2]
[396527166,1765036256218,-528.42741305,0.00016438,2]
[396527167,1765036256227,-528.42741305,0.00016438,2]
[396527168,1765036256236,-528.42741305,0.00016438,2]
[396527169,1765036256245,-528.42741305,0.00016438,2]
[396527170,1765036256255,-528.42741305,0.00016438,2]
[396527171,1765036256264,-528.42741305,0.00016438,2]
[396527172,1765036256274,-528.42741305,0.00016438,2]
[396527173,1765036256283,-528.42741305,0.00016438,2]
[396527174,1765036256292,-528.42741305,0.00016438,2]
[396527175,1765036256301,-528.42741305,0.00016438,2]
[396527176,1765036256310,-528.42741305,0.00016438,2]
[396527177,1765036256324,-528.42741305,0.00016438,2]
[396527178,1765036256334,-528.42741305,0.00016438,2]
[396527179,1765036256343,-528.42741305,0.00016438,2]
[396527180,1765036256352,-528.42741305,0.00016438,2]
[396527181,1765036256361,-528.42741305,0.00016438,2]
[396527182,1765036256370,-528.42741305,0.00016438,2]
[396527183,1765036256379,-528.42741305,0.00016438,2]
[396527184,1765036256388,-528.42741305,0.00016438,2]
[396527185,1765036256397,-528.42741305,0.00016438,2]
[396527186,1765036256405,-528.42741305,0.00016438,2]
[396527187,1765036256414,-528.42741305,0.00016438,2]
[396527188,1765036256424,-528.42741305,0.00016438,2]
[396527189,1765036256432,-528.42741305,0.00016438,2]
[396527190,1765036256445,-528.42741305,0.00016438,2]
[396527191,1765036256454,-528.42741305,0.00016438,2]
[396527192,1765036256464,-561.65,0.00016438,2]
[396527193,1765036256473,-951.16934348,0.00016438,2]
[396527194,1765036256482,-951.16934348,0.00016438,2]
[396527195,1765036256492,-951.16934348,0.00016438,2]
[396527196,1765036256501,-951.16934348,0.00016438,2]
[396527197,1765036256511,-951.16934348,0.00016438,2]
[396527198,1765036256520,-951.16934348,0.00016438,2]
[396527199,1765036256529,-951.16934348,0.00016438,2]
[396527200,1765036256539,-951.16934348,0.00016438,2]
[396527201,1765036256548,-951.16934348,0.00016438,2]
[396527202,1765036256557,-951.16934348,0.00016438,2]
[396527203,1765036256567,-951.16934348,0.00016438,2]
[396527204,1765036256576,-951.16934348,0.00016438,2]
[396527205,1765036256586,-951.16934348,0.00016438,2]
[396527206,1765036256595,-951.16934348,0.00016438,2]
[396527207,1765036256605,-951.16934348,0.00016438,2]
[396527208,1765036256615,-951.16934348,0.00016438,2]
[396527209,1765036256626,-951.16934348,0.00016438,2]
[396527210,1765036256636,-951.16934348,0.00016438,2]
[396527211,1765036256646,-951.16934348,0.00016438,2]
[396527212,1765036256655,-951.16934348,0.00016438,2]
[396527213,1765036256665,-951.16934348,0.00016438,2]
[396527214,1765036256675,-951.16934348,0.00016438,2]
[396527215,1765036256684,-951.16934348,0.00016438,2]
[396527216,1765036256694,-951.16934348,0.00016438,2]
[396527217,1765036256703,-951.16934348,0.00016438,2]
[396527218,1765036256712,-951.16934348,0.00016438,2]
[396527219,1765036256721,-951.16934348,0.00016438,2]
[396527220,1765036256731,-500.0,0.00016438,2]
[396527221,1765036256740,-239.79837805,0.00016438,2]
[396527222,1765036256749,-151.0,0.00016438,2]
[396527223,1765036256758,-151.0,0.00016438,2]
[396527224,1765036256767,-151.0,0.00016438,2]
[396527225,1765036256777,-151.0,0.00016438,2]
[396527226,1765036256786,-294.859152,0.00016438,2]
[396527227,1765036256796,-15053.83,0.00016438,2]
[396527228,1765036256805,-426.59,0.00016438,2]
[396527229,1765036256814,-801.68444085,0.00016438,2]
[396527230,1765036256823,-600.0,0.00016438,2]
[396527231,1765036256833,-480.8155,0.00016438,2]
[396527232,1765036256842,-150.0,0.0001645,2]
[396527233,1765036256851,-10556.53893359,0.00016458,2]
[396527234,1765036256861,-150.0,0.00016459,2]
[396527235,1765036256870,-168.0,0.00016468,2]
[396527236,1765036256879,-150.0,0.00016469,2]
[396527237,1765036256890,-150.0,0.00016477,2]
[396527238,1765036256900,-150.0,0.00016481,2]
[396527239,1765036256911,-14375.54396746,0.00016484,2]
[396527240,1765036256921,-150.0,0.00016487,2]
[396527241,1765036256932,-150.0,0.00016501,2]
[396527243,1765036256942,-150.0,0.00016501,2]
[396527244,1765036256953,-150.0,0.00016501,2]
[396527245,1765036256962,-150.0,0.00016518,2]
[396527246,1765036256971,-470.49106291,0.00016521,2]
[396527247,1765036256981,-150.0,0.00016523,2]
[396527248,1765036256990,-150.0,0.00016527,2]
[396527249,1765036256999,-150.0,0.00016533,2]
[396527250,1765036257008,-150.0,0.00016537,2]
[396527251,1765036257018,-150.0,0.00016539,2]
[396527252,1765036257027,-150.0,0.00016543,2]
[396527253,1765036257036,-151.0,0.00016555,2]
[396527254,1765036257045,-151.0,0.00016555,2]
[396527255,1765036257054,-169.685338,0.00016555,2]
[396527256,1765036257063,-151.0,0.00016555,2]
[396527257,1765036257073,-155.997853,0.00016555,2]
[396527258,1765036257082,-151.0,0.00016555,2]
[396527259,1765036257092,-151.0,0.00016555,2]
[396527260,1765036257101,-151.0,0.00016555,2]
[396527261,1765036257109,-151.0,0.00016555,2]
[396527262,1765036257118,-151.0,0.00016555,2]
[396527263,1765036257128,-162.697133,0.00016555,2]
[396527264,1765036257137,-500.0,0.00016561,2]
[396527265,1765036257146,-150.0,0.00016562,2]
[396527266,1765036257155,-150.0,0.00016573,2]
[396527267,1765036257165,-500.0,0.00016575,2]
[396527268,1765036257174,-150.0,0.00016576,2]
[396527269,1765036257186,-150.0,0.00016587,2]
[396527270,1765036257200,-250.85960763,0.000166,2]
[396527271,1765036257211,-4425.0,0.00016602,2]
[396527272,1765036257220,-500.0,0.00016603,2]
[396527273,1765036257229,-151.0,0.00016616,2]
[396527274,1765036257240,-2000.0,0.00016616,2]
[396527275,1765036257249,-2000.0,0.00016616,2]
[396527276,1765036257259,-2146.56260007,0.00016616,2]
[396527277,1765036257268,-2000.0,0.00016616,2]
[396527278,1765036257279,-150.0,0.00016617,2]
[396527279,1765036257288,-150.0,0.00016619,2]
[396527280,1765036257298,-150.0,0.00016629,2]
[396527281,1765036257307,-500.0,0.0001663,2]
[396527282,1765036257317,-1433.0,0.00016632,2]
[396527283,1765036257326,-150.0,0.00016635,2]
[396527284,1765036257336,-151.0,0.00016635,2]
[396527285,1765036257345,-150.0,0.00016637,2]
[396527286,1765036257355,-150.0,0.00016647,2]
[396527287,1765036257364,-150.0,0.00016647,2]
[396527288,1765036257373,-1433.0,0.00016659,2]
[396527289,1765036257383,-150.0,0.00016665,2]
[396527290,1765036257392,-150.0,0.00016677,2]
[396527291,1765036257401,-150.0,0.00016687,2]
[396527292,1765036257410,-150.0,0.00016691,2]
[396527294,1765036257419,-150.0,0.00016693,2]
[396527295,1765036257428,-720.65189477,0.000167,2]
[396527296,1765036257438,-150.0,0.00016711,2]
[396527297,1765036257447,-500.0,0.00016712,2]
[396527298,1765036257456,-176.28,0.00016712,2]